Cogmind - Beta 14 X2 @@@ ROGUE MODE // 2024.07.29 @ 00:32:27 Player: f3-rnm Result: Destroyed by P-80 Master with Gamma Rifle Performance ------------- Evolutions (9) 4500 Regions Visited (25) 5000 Robots Destroyed (253) 1265 Value Destroyed (13040) 13040 Prototype IDs (67) 1340 Alien Tech Used (0) 0 Bonus (5731) 5731 TOTAL SCORE: 30876 Bonus ------- High Alert Combat Kills 1438 Follower Combat Kills 1047 Entered DSFs 500 Registered with UFD 300 Met Data Miner 300 Met R17 at Cetus 500 Met R17 at Research 2000 Friendly Fire -354 Cogmind --------- Core Integrity 0/1600 Matter 211/300 Energy 26/100 System Corruption 12% Temperature Cool (0) Movement Core (50) Location -1/Access Parts ------- > --- POWER (3) -------- (None) > --- PROPULSION (6) --- (None) > --- UTILITY (12) ----- (None) > --- WEAPON (4) ------- (None) > --- INVENTORY (5) ---- (None) Peak State ------------ > --- POWER ------------ Quantum Reactor > --- PROPULSION ------- Centrium Leg Centrium Leg Centrium Leg Centrium Leg Experimental Biometal Leg Experimental Biometal Leg > --- UTILITY ---------- Advanced Cryofiber Web Coolant Network High-capacity Storage Unit Machine Analyzer Experimental Targeting Computer SHELL Armor Improved Hacking Suite Advanced Component Analysis Suite Long-range Tractor Beam > --- WEAPON ----------- Tachyon Dispersion Ray Omega Cannon > --- INVENTORY -------- Experimental Biometal Leg Wheel Improved Linear Gravjet Improved Linear Gravjet Experimental Gyrokinetic Inverter Advanced Energy Well Experimental Energy Well Experimental Matter Compressor Experimental Matter Compressor Light Regenerative Plating Heavy Regenerative Plating Graphene Brace Experimental Focal Shield AEGIS Remote Shield Micro-nuke Launcher Fusion Bomb Launcher Improved Plasma Cutter Power Maul [Rating: 195] Favorites ----------- Power Light Angular Momentum Engine Engine Light Angular Momentum Engine Power Core Light Nuclear Core Reactor Quantum Reactor Propulsion Light Treads Treads Light Treads Leg Centrium Leg Wheel Compact Wheel Hover Unit Improved Linear Gravjet Flight Unit Electron Diverter Utility High-capacity Storage Unit Device Advanced Heat Sink Storage High-capacity Storage Unit Processor Advanced Targeting Computer Hackware Improved Hacking Suite Protection Hardened Medium Armor Plating Weapon Enhanced Autogun Energy Gun Medium Laser Energy Cannon Heavy Neutron Cannon Ballistic Gun Enhanced Autogun Ballistic Cannon Omega Cannon Launcher Grenade Launcher Build | -11 -10 -10 -10 -9 -8 -8 -8 -8 -6 -6 -6 -6 -5 -5 -5 -5 -5 -4 -4 -4 -4 -3 -3 -2 -1 ------- Run | Yrd Mat Min Exi Min Mat Sto Rec Scr Fac Low Low Dat Pro Fac Was Fac DSF Fac Ext Cet Arc Res Tes Res Acc Slots Evolved 18 | . . . . . 4 . . . 4 . . . . 2 . . . 2 . . . 2 . 2 2 Power 2 | . . . . . . . . . . . . . . . . . . . . . . 1 . 1 . Propulsion 4 | . . . . . 1 . . . 1 . . . . . . . . 1 . . . 1 . . . Utility 10 | . . . . . 2 . . . 3 . . . . 2 . . . 1 . . . . . 1 1 Weapon 2 | . . . . . 1 . . . . . . . . . . . . . . . . . . . 1 Parts Attached 259 | 5 9 5 1 . 15 23 3 1 3 5 10 . 3 8 1 4 1 19 23 16 8 12 47 19 18 Power 26 | 1 . 1 . . 2 1 . . . . 1 . 1 . . 1 . 3 1 1 1 1 9 1 1 Engine 8 | 1 . 1 . . . 1 . . . . 1 . . . . . . 2 . . . . 2 . . Core 7 | . . . . . 2 . . . . . . . 1 . . 1 . 1 . . . 1 1 . . Reactor 11 | . . . . . . . . . . . . . . . . . . . 1 1 1 . 6 1 1 Propulsion 66 | 1 3 1 . . 3 8 2 . . 3 2 . . 3 . . . 1 7 1 1 5 9 7 9 Treads 45 | 1 2 1 . . 1 7 2 . . 3 1 . . 3 . . . . 6 . 1 5 5 . 7 Leg 6 | . . . . . . . . . . . . . . . . . . . . . . . . 6 . Wheel 9 | . 1 . . . 2 . . . . . 1 . . . . . . 1 1 1 . . 2 . . Hover 3 | . . . . . . . . . . . . . . . . . . . . . . . 2 1 . Flight 3 | . . . . . . 1 . . . . . . . . . . . . . . . . . . 2 Utility 97 | 1 5 1 . . 6 3 1 1 3 1 3 . 1 4 . . 1 8 13 5 4 4 16 11 5 Device 53 | . 3 1 . . 4 1 . . 1 1 1 . 1 1 . . 1 4 4 3 2 3 11 8 3 Storage 8 | 1 2 . . . . . . . . . . . . . . . . 1 1 . . . 1 1 1 Processor 6 | . . . . . . . 1 . . . . . . 2 . . . . 1 . . . 2 . . Hackware 6 | . . . . . . . . . 2 . . . . . . . . 1 . . 1 1 . 1 . Protection 24 | . . . . . 2 2 . 1 . . 2 . . 1 . . . 2 7 2 1 . 2 1 1 Artifact . | . . . . . . . . . . . . . . . . . . . . . . . . . . Weapon 70 | 2 1 2 1 . 4 11 . . . 1 4 . 1 1 1 3 . 7 2 9 2 2 13 . 3 Energy Gun 15 | 1 . . . . 1 1 . . . 1 . . . . . . . 3 . 2 . 1 5 . . Energy Cannon 17 | . . . . . 1 1 . . . . . . . . 1 1 . 4 1 4 1 1 2 . . Ballistic Gun 23 | 1 1 1 1 . 2 9 . . . . 4 . 1 . . . . . . . 1 . 2 . . Ballistic Cannon 8 | . . . . . . . . . . . . . . 1 . 2 . . . 3 . . 2 . . Launcher 7 | . . 1 . . . . . . . . . . . . . . . . 1 . . . 2 . 3 Special Weapon . | . . . . . . . . . . . . . . . . . . . . . . . . . . Impact Weapon . | . . . . . . . . . . . . . . . . . . . . . . . . . . Slashing Weapon . | . . . . . . . . . . . . . . . . . . . . . . . . . . Piercing Weapon . | . . . . . . . . . . . . . . . . . . . . . . . . . . Special Melee Weapon . | . . . . . . . . . . . . . . . . . . . . . . . . . . Unidentified Prototypes 27 | . . . . . . 4 . . . . . . . . . 1 . 1 1 2 1 1 10 3 3 Parts Lost 92 | . 2 2 . . 12 7 . . . 2 8 . 4 . 3 . 1 2 9 6 2 2 17 3 10 Power 13 | . . 1 . . 1 1 . . . . 1 . 1 . 1 . . 1 . . . . 4 2 . Propulsion 33 | . 2 . . . 4 2 . . . 1 3 . 1 . 1 . . 1 4 3 1 . 5 . 5 Utility 31 | . . . . . 4 2 . . . 1 3 . 1 . 1 . 1 . 5 1 1 . 7 1 3 Weapon 15 | . . 1 . . 3 2 . . . . 1 . 1 . . . . . . 2 . 2 1 . 2 Highest Loss Streak 8 | . 1 2 . . 4 5 . . . 2 4 . 3 . 3 . 1 2 3 6 1 2 8 1 4 To Critical Strikes 5 | . . . . . 1 . . . . . . . . . . . . . 1 2 . . . . 1 Average Slot Usage (%) 89 | . 85 99 100 100 82 91 100 100 92 96 86 93 83 89 74 51 43 69 94 87 82 84 79 81 44 Engine 5 | . 14 13 14 14 3 5 9 9 6 6 5 6 1 . . . . 4 . . . . . 2 . Reactor 1 | . . . . . . . . . . . . . . . . . . . 4 5 5 4 5 5 3 Treads 17 | . 14 28 28 28 15 19 27 27 20 23 9 13 6 13 15 11 11 8 20 10 3 11 14 . 2 Wheel 1 | . 1 . . . 1 3 . . . . 4 6 6 . . . . 4 1 4 5 2 . 2 . Device 13 | . 12 14 14 14 12 13 10 9 12 12 12 13 15 12 9 5 9 18 16 14 15 13 18 13 6 Storage 7 | . 14 14 14 14 9 9 9 9 6 6 6 6 6 5 3 . . 3 5 5 5 4 4 4 2 Processor 7 | . . . . . . . 7 9 6 6 6 6 6 16 17 17 14 10 13 15 12 9 9 8 5 Hackware 3 | . . . . . . . . . 12 13 7 6 6 5 4 . . . 5 5 7 13 6 7 2 Protection 6 | . . . . . 10 11 9 9 6 6 10 13 6 9 8 5 5 3 8 10 9 4 2 3 2 Energy Gun 3 | . 14 14 12 . . 4 . . . 3 . . . . . . . 7 1 1 1 2 1 4 1 Energy Cannon 2 | . . . . . 5 . . . . . . . . . 3 . . 5 12 4 10 5 3 . . Ballistic Gun 11 | . 13 4 1 14 15 21 27 27 20 16 19 20 20 12 3 . . . . . 3 4 3 . . Launcher 1 | . . 9 14 14 1 . . . . . . . . . . . . . . . . . . . 1 Naked Turns 11 | . . . . . . . . . . . . . . . . . . . . . . . . . 11 Heaviest Build 144 | 14 50 49 49 49 57 68 68 67 63 64 65 65 65 71 77 24 2 97 113 119 117 109 120 144 130 Greatest Support 205 | 20 40 40 40 40 60 60 62 62 62 82 80 10 10 124 124 97 12 37 119 16 28 186 205 176 148 Greatest Overweight (x) 8 | . 4 1 1 1 5 4 1 1 1 1 6 6 6 5 . . . 3 6 7 7 6 5 8 1 Average Overweight (x) 1 | . 1 1 1 1 1 1 1 . . . 4 6 5 . . . . 1 . 6 4 3 . 2 . Largest Inventory Capacity 20 | 8 20 20 20 20 20 20 20 20 20 20 20 20 20 20 20 5 5 20 20 20 20 20 20 20 20 Average Capacity 19 | 7 16 20 20 20 20 20 20 20 20 20 20 20 20 20 14 5 5 15 20 20 20 20 20 20 14 Most Carried 20 | 4 19 18 20 20 20 20 20 20 20 20 20 18 20 20 19 5 5 20 20 20 20 20 20 20 20 Average Carried 18 | 2 12 17 18 20 18 18 19 19 18 20 19 18 18 19 13 4 4 9 19 19 19 19 18 19 12 Final Capacity 20 | 8 20 20 20 20 20 20 20 20 20 20 20 20 20 20 5 5 5 20 20 20 20 20 20 20 5 Final Carried 20 | 4 19 18 20 20 19 20 20 20 20 20 18 18 20 19 5 4 5 20 20 19 19 20 18 20 . Class Distribution -------------------- 48% | Scavenger-Gunner 17% | Scavenger-Tank 16% | Mutant 4% | Commander-Mutant 3% | Hacker-Gunner 3% | Tank Dominant Class ---------------- Mutant | -10/Materials Mutant | -10/Mines Commander-Mutant | -10/Exiles Commander-Mutant | -9/Mines Scavenger-Tank | -8/Materials Scavenger-Tank | -8/Storage Scavenger-Gunner | -8/Recycling Scavenger-Gunner | -8/Scraptown Scavenger-Gunner | -6/Factory Scavenger-Gunner | -6/Lower Caves Scavenger-Tank | -6/Lower Caves Scavenger-Tank | -6/Data Miner Scavenger-Gunner | -5/Proximity Caves Tank | -5/Factory Tank | -5/Waste Mutant | -5/Factory Mutant | -5/DSF Scavenger-Gunner | -4/Factory Scavenger-Gunner | -4/Extension Scavenger-Gunner | -4/Cetus Scavenger-Gunner | -4/Archives Scavenger-Gunner | -3/Research Scavenger-Tank | -3/Testing Hacker-Gunner | -2/Research Mutant | -1/Access Resources | -11 -10 -10 -10 -9 -8 -8 -8 -8 -6 -6 -6 -6 -5 -5 -5 -5 -5 -4 -4 -4 -4 -3 -3 -2 -1 ----------- Run | Yrd Mat Min Exi Min Mat Sto Rec Scr Fac Low Low Dat Pro Fac Was Fac DSF Fac Ext Cet Arc Res Tes Res Acc Matter Collected 8788 | 207 276 136 27 . 406 747 503 6 254 271 511 . 130 . . . . 416 370 326 261 245 1626 1386 684 Remotely 1686 | . . . . . . . . . . . . . . . . . . . . . . . 149 914 623 Salvage Created 10266 | . 488 110 . . 403 845 535 . 348 360 641 . 160 27 394 . . 687 1335 365 536 351 1267 678 736 Parts 454 | . 41 5 . . 20 55 29 . 15 16 21 . 8 . 4 . . 33 50 16 22 15 55 25 24 Haulers Intercepted 6 | . 1 . . . . 2 . . . . . . . . . . . . . . . 1 1 . 1 Recyclers Shooed 4 | . . . . . 1 . 1 . . . . . . . . . . . . . . . 1 . 1 Parts Field Recycled . | . . . . . . . . . . . . . . . . . . . . . . . . . . Retrieved Matter . | . . . . . . . . . . . . . . . . . . . . . . . . . . Parts Self-Destructed 60 | . . . . . . . . . . 17 37 . 6 . . . . . . . . . . . . Prevented . | . . . . . . . . . . . . . . . . . . . . . . . . . . Kills | -11 -10 -10 -10 -9 -8 -8 -8 -8 -6 -6 -6 -6 -5 -5 -5 -5 -5 -4 -4 -4 -4 -3 -3 -2 -1 ------- Run | Yrd Mat Min Exi Min Mat Sto Rec Scr Fac Low Low Dat Pro Fac Was Fac DSF Fac Ext Cet Arc Res Tes Res Acc Combat Hostiles Destroyed 196 | . 12 4 . . 12 14 9 . 8 9 12 . 5 1 2 . . 6 20 8 4 4 34 18 14 Guns 92 | . 12 2 . . 12 14 9 . 8 9 12 . 5 . . . . 3 1 . . 3 2 . . Cannons 73 | . . . . . . . . . . . . . . 1 . . . 3 17 8 4 1 18 18 3 AOE 29 | . . 2 . . . . . . . . . . . . 1 . . . 2 . . . 13 . 11 Classes Destroyed 18 | . 5 1 . . 4 1 2 . . . 1 . . . 1 . . . 2 . . . 1 . . Worker 10 | . . . . . 1 1 . . . . . . . . . . . . 1 . . 1 1 2 3 Builder 12 | . . 1 . . . . . . . . . . . . . . . . 2 . . . 1 2 6 Tunneler 2 | . 1 . . . . . . . . . . . . . . . . 1 . . . . . . . Hauler 6 | . 1 . . . . 2 . . . . . . . . . . . . . . . 1 1 . 1 Recycler 5 | . . . . . . . 1 . . . . . . . . . . 2 1 . . . . . 1 Operator 12 | . . . . . . 2 . . . . . . . . . . . . 1 . 8 . 1 . . Watcher 7 | . 1 . . . . 1 . . . . . . . . . . . . 2 . . . 2 1 . Swarmer 23 | . 3 . . . . . . . 3 6 3 . 4 . . . . . . . . 2 . 2 . Grunt 81 | . 9 4 . . 7 10 1 . 3 2 5 . . . . . . 2 8 . . . 17 7 6 Brawler 1 | . . . . . . . . . . . 1 . . . . . . . . . . . . . . Duelist 4 | . . . . . 1 . . . 1 . . . . . . . . . . . . . . 1 1 Researcher 1 | . . . . . . . . . . . . . . . . . . . . . . . 1 . . Sentry 34 | . . . . . 2 4 5 . . 1 2 . . 1 . . . 2 8 . 4 2 . 3 . Demolisher 1 | . . . . . . . . . . . . . . . . . . . 1 . . . . . . Hunter 17 | . . . . . 2 . 1 . . . 1 . . . . . . . 2 . . . 3 3 5 Programmer 25 | . . . . . . . 2 . 1 . . . 1 . . . . 2 . . . . 14 3 2 Behemoth 1 | . . . . . . . . . . . . . . . . . . . 1 . . . . . . Compactor 2 | . . . . . . . . . . . . . . . 2 . . . . . . . . . . Cetus Guard 8 | . . . . . . . . . . . . . . . . . . . . 8 . . . . . Guerrilla 1 | . . . . . . . . . . . . . . . . . . . 1 . . . . . . Best Kill Streak 17 | . 3 3 . . 5 5 6 . 4 4 4 . 4 1 1 . . 5 5 4 3 2 12 7 17 Combat Bots Only 10 | . 3 2 . . 5 4 5 . 4 4 4 . 4 1 1 . . 3 5 4 1 2 10 6 9 Max Kills in Single Turn 4 | . 1 1 . . 1 1 2 . 1 2 2 . 2 1 1 . . 2 2 2 1 1 3 1 4 Gunslinging 1 | . . . . . . . 1 . . 1 1 . 1 . . . . . . . . . . . . Exploded 3 | . . 1 . . . . . . . . . . . . 1 . . . 1 . . . 3 . 2 Melee . | . . . . . . . . . . . . . . . . . . . . . . . . . . Uniques/NPCs Destroyed . | . . . . . . . . . . . . . . . . . . . . . . . . . . Combat | -11 -10 -10 -10 -9 -8 -8 -8 -8 -6 -6 -6 -6 -5 -5 -5 -5 -5 -4 -4 -4 -4 -3 -3 -2 -1 -------- Run | Yrd Mat Min Exi Min Mat Sto Rec Scr Fac Low Low Dat Pro Fac Was Fac DSF Fac Ext Cet Arc Res Tes Res Acc Hostile Shots Fired 1716 | . 53 24 . . 98 86 32 . 42 65 77 . 46 14 3 3 9 36 125 64 21 26 377 137 378 Missed 584 | . 10 5 . . 30 24 12 . 17 21 31 . 15 3 . 1 5 11 41 21 5 8 131 46 147 Damage Taken 22350 | . 550 306 . . 1124 907 301 . 376 413 758 . 406 263 257 46 199 637 2201 1174 484 533 4702 1454 5259 Core 3475 | . 123 93 . . 250 73 64 . 29 41 89 . 82 43 133 . 35 43 101 165 30 30 381 60 1610 Absorbed by Shields 1202 | . . . . . . . . . 112 3 . . . . . . . . . . . . 519 561 7 Reduced by Siege Mode 50 | . . . . . . . . . . . . . . . . . . . . . . . 50 . . Redirected to Shielding 102 | . . . . . 40 11 . . . . 18 . 11 6 13 3 . . . . . . . . . Ignored by Resistances 276 | . . . . . . 52 . . . . . . . . . . . . . . . . 224 . . Regen/Repaired (Parts) 205 | . . . . . . . . . . . . . . . . . . . . . . . . 160 45 Core Remaining (%) 65 | 100 . . . 13 . . . 29 . . . . 71 . . . 78 . . . 70 . 68 95 . Volleys Fired 684 | . 53 17 . . 48 46 26 . 24 14 40 . 10 13 7 . . 28 71 25 39 25 111 58 29 Largest 3 | . 2 2 . . 3 3 3 . 3 3 3 . 3 3 1 . . 3 3 3 3 3 3 2 2 Hottest 350 | . 70 80 . . 108 113 75 . 75 130 138 . 75 107 100 . . 295 330 277 330 350 225 180 101 Shots Fired 1350 | . 106 28 . . 106 135 77 . 72 42 119 . 30 27 7 . . 50 123 66 62 56 150 59 35 Gun 853 | . 106 20 . . 93 135 77 . 72 42 119 . 30 14 . . . 20 7 . 34 30 53 1 . Cannon 453 | . . . . . 13 . . . . . . . . 13 7 . . 30 114 66 28 26 86 58 12 Launcher 44 | . . 8 . . . . . . . . . . . . . . . . 2 . . . 11 . 23 Special . | . . . . . . . . . . . . . . . . . . . . . . . . . . Kinetic 837 | . 53 9 . . 88 107 77 . 72 38 114 . 30 27 . . . . . 52 27 17 56 58 12 Thermal 456 | . 53 11 . . 18 28 . . . 4 5 . . . 7 . . 50 121 14 35 39 71 . . Explosive 44 | . . 8 . . . . . . . . . . . . . . . . 2 . . . 11 . 23 Electromagnetic 13 | . . . . . . . . . . . . . . . . . . . . . . . 12 1 . Robot Hit Streak 34 | . 9 4 . . 9 17 16 . 12 19 12 . 5 16 4 . . 16 18 6 16 14 15 34 14 Robot Miss Streak 7 | . 7 1 . . 5 7 1 . 2 3 3 . 3 1 1 . . 2 2 5 1 3 2 1 2 Penetration Max 1 | . . . . . . . . . . . . . . . . . . . . 1 1 . 1 . . Secondary Targets 18 | . 1 . . . . 2 2 . 3 3 5 . 2 . . . . . . . . . . . . Max Gunslinging Chain 1 | . 1 . . . . 1 1 . 1 1 1 . 1 . . . . . . . . . . . . Shots Hit Robots 893 | . 59 12 . . 84 85 59 . 53 29 83 . 17 19 5 . . 21 91 38 43 28 100 50 17 Core Hits 507 | . 28 13 . . 42 43 17 . 19 11 32 . 9 4 2 . . 23 62 13 28 13 76 21 51 Critical Kills 10 | . . . . . . . . . . . 1 . . . 1 . . . . 6 1 1 . . . Critical Parts Destroyed 16 | . . . . . . . . . . . 1 . . . . . . . . 11 2 . 2 . . Critical Strikes 61 | . 3 1 . . . 2 . . . . 2 . . 1 1 . . . 1 23 3 1 11 11 1 Burn 7 | . 3 1 . . . 2 . . . . . . . . . . . . 1 . . . . . . Meltdown 1 | . . . . . . . . . . . . . . . 1 . . . . . . . . . . Destroy 31 | . . . . . . . . . . . 2 . . . . . . . . 23 3 1 2 . . Blast 22 | . . . . . . . . . . . . . . 1 . . . . . . . . 9 11 1 Melee Attacks . | . . . . . . . . . . . . . . . . . . . . . . . . . . Impact . | . . . . . . . . . . . . . . . . . . . . . . . . . . Slashing . | . . . . . . . . . . . . . . . . . . . . . . . . . . Piercing . | . . . . . . . . . . . . . . . . . . . . . . . . . . Sneak Attacks . | . . . . . . . . . . . . . . . . . . . . . . . . . . Combat Hostiles . | . . . . . . . . . . . . . . . . . . . . . . . . . . Follow-up Attacks . | . . . . . . . . . . . . . . . . . . . . . . . . . . Damage Inflicted 38545 | . 727 481 . . 1469 1500 1115 . 955 469 1465 . 315 414 1145 . . 786 5362 1093 1701 970 9654 4811 4113 Guns 11037 | . 727 184 . . 1277 1500 1115 . 955 469 1465 . 315 200 . . . 258 142 . 833 506 1079 12 . Cannons 17449 | . . . . . 192 . . . . . . . . 214 514 . . 413 4001 1093 792 464 3951 4799 1016 Explosions 10047 | . . 297 . . . . . . . . . . . . 631 . . 115 1219 . 76 . 4624 . 3085 Melee . | . . . . . . . . . . . . . . . . . . . . . . . . . . Ramming 12 | . . . . . . . . . . . . . . . . . . . . . . . . . 12 Kinetic 17973 | . 302 82 . . 1233 1208 1115 . 955 426 1331 . 315 414 . . . . . 718 719 309 3031 4799 1016 Thermal 11666 | . 425 102 . . 236 292 . . . 43 134 . . . 1145 . . 671 4462 375 982 661 2138 . . Explosive 8578 | . . 297 . . . . . . . . . . . . . . . . 900 . . . 4296 . 3085 Electromagnetic 316 | . . . . . . . . . . . . . . . . . . 115 . . . . 189 12 . Impact . | . . . . . . . . . . . . . . . . . . . . . . . . . . Slashing . | . . . . . . . . . . . . . . . . . . . . . . . . . . Piercing . | . . . . . . . . . . . . . . . . . . . . . . . . . . Highest Corruption 20 | . . . . . . 1 2 . . . . . . . 18 18 18 1 1 1 1 . 20 1 11 Average Corruption 3 | . . . . . . 1 1 . . . . . . . 10 18 18 1 1 1 1 . 12 1 8 Corruption Purged . | . . . . . . . . . . . . . . . . . . . . . . . . . . Corruption Blocked . | . . . . . . . . . . . . . . . . . . . . . . . . . . Effects 149 | . . . . . . 4 18 . . . . . . . 6 5 3 1 27 3 8 . 65 3 6 Message Errors 33 | . . . . . . 2 2 . . . . . . . 1 2 2 . 3 1 2 . 17 . 1 Matter Fused 31 | . . . . . . 1 2 . . . . . . . 2 . . . 8 . 3 . 13 1 1 Heat Flow Errors 20 | . . . . . . . 6 . . . . . . . 1 1 . . 4 1 . . 6 . 1 Energy Discharges 11 | . . . . . . 1 1 . . . . . . . . . . . 5 . 1 . 3 . . Parts Rejected 5 | . . . . . . . . . . . . . . . . . 1 . . . . . 2 . 2 Data Loss (minor) 25 | . . . . . . . 2 . . . . . . . 2 2 . . 5 . . . 12 2 . Data Loss (major) 7 | . . . . . . . . . . . . . . . . . . . 1 1 1 . 4 . . Misfires 5 | . . . . . . . 1 . . . . . . . . . . . 1 . . . 3 . . Alerts 2 | . . . . . . . 2 . . . . . . . . . . . . . . . . . . Misdirections 2 | . . . . . . . . . . . . . . . . . . . . . . . 1 . 1 Weapon Failures 8 | . . . . . . . 2 . . . . . . . . . . 1 . . 1 . 4 . . Overload Shots 1 | . . . . . . . . . . . . . . . . . . . . . . 1 . . . Overflow Damage 1688 | . . . . . . . . . . . . . . . 10 . . . 90 . 35 5 748 442 358 Projectiles 1207 | . . . . . . . . . . . . . . . . . . . 37 . 12 5 468 442 243 Explosions 481 | . . . . . . . . . . . . . . . 10 . . . 53 . 23 . 280 . 115 Melee . | . . . . . . . . . . . . . . . . . . . . . . . . . . Knockbacks 43 | . . . . . . . . . . . . . . . . . . . . 1 . . 12 24 6 Impact . | . . . . . . . . . . . . . . . . . . . . . . . . . . Kinetic 37 | . . . . . . . . . . . . . . . . . . . . 1 . . 12 18 6 Secondary 6 | . . . . . . . . . . . . . . . . . . . . . . . . 6 . Self-Inflicted Damage 1125 | . . 17 . . . . . . . . . . . . 136 . . 93 70 . 50 . 564 . 195 Shots 24 | . . 1 . . . . . . . . . . . . 2 . . 4 2 . 1 . 11 . 3 Rammed 10 | . . . . . . . . . . . . . . . . . . . 1 . . . . . 9 Targets Rammed 10 | . . . . . . . . . . . . . . . . . . . 1 . . . . . 9 Kicked . | . . . . . . . . . . . . . . . . . . . . . . . . . . Crushed . | . . . . . . . . . . . . . . . . . . . . . . . . . . Highest Temperature 288 | . 129 4 . . 235 73 255 . 21 72 78 . . 42 95 216 . 288 . 72 . . . . 234 Average Temperature 49 | . 56 2 . . 107 21 46 . 10 26 17 . . 18 55 116 . 82 . 36 . . . . 130 Received Heat Transfer 3458 | . 228 189 . . 378 477 72 . 127 90 237 . 12 45 . . . 93 365 45 54 99 528 158 261 Siege Activations 1 | . . . . . . . . . . . . . . . . . . . . . . . 1 . . Total Turns 11 | . . . . . . . . . . . . . . . . . . . . . . . 11 . . Longest Duration 11 | . . . . . . . . . . . . . . . . . . . . . . . 11 . . Robots Corrupted 3 | . . . . . . . . . . . . . . . . . . . . . . . 1 2 . Combat Hostiles 1 | . . . . . . . . . . . . . . . . . . . . . . . 1 . . Parts Fried 7 | . . . . . . . . . . . . . . . . . . . . . . . 2 5 . Impact Corruptions 3 | . . . . . . . . . . . . . . . . . . . . . . . . 3 . Robots Melted 1 | . . . . . . . . . . . . . . . 1 . . . . . . . . . . Combat Hostiles 1 | . . . . . . . . . . . . . . . 1 . . . . . . . . . . Parts Melted 6 | . . 1 . . . . . . . . 1 . . . . . . 3 . . . 1 . . . Heat Transferred 7838 | . 1480 370 . . 518 851 . . . 100 300 . . . 1120 . . 1150 650 . 235 259 805 . . Parts Sabotaged . | . . . . . . . . . . . . . . . . . . . . . . . . . . Parts Stolen . | . . . . . . . . . . . . . . . . . . . . . . . . . . Parts Stripped . | . . . . . . . . . . . . . . . . . . . . . . . . . . Power Chain Reactions 6 | . . . . . . . . . . . . . . . . . . 1 3 . 1 . 1 . . Alert | -11 -10 -10 -10 -9 -8 -8 -8 -8 -6 -6 -6 -6 -5 -5 -5 -5 -5 -4 -4 -4 -4 -3 -3 -2 -1 ------- Run | Yrd Mat Min Exi Min Mat Sto Rec Scr Fac Low Low Dat Pro Fac Was Fac DSF Fac Ext Cet Arc Res Tes Res Acc Peak Influence 1296 | . 223 124 . . 171 360 158 . 190 . . . . 81 55 43 35 287 789 507 342 215 720 781 1296 Initial 415 | . . 8 . . . 59 120 . . . . . . 18 1 28 30 18 67 415 122 57 36 378 372 Average 214 | . 66 91 . . 54 225 76 . 63 . . . . 26 29 29 26 101 323 464 236 111 269 539 836 Maximum Alert Level 4 | . 1 . . . . 1 . . . . . . . . . . . 1 3 2 1 1 3 3 4 Low Security (%) 63 | 100 91 100 . 100 100 37 100 . 100 . . . . 100 100 100 100 94 47 . 45 87 33 . . Level 1 16 | . 8 . . . . 62 . . . . . . . . . . . 5 15 9 54 12 41 18 24 Level 2 14 | . . . . . . . . . . . . . . . . . . . 27 90 . . 23 65 11 Level 3 3 | . . . . . . . . . . . . . . . . . . . 8 . . . . 16 25 Level 4 1 | . . . . . . . . . . . . . . . . . . . . . . . . . 37 Level 5 . | . . . . . . . . . . . . . . . . . . . . . . . . . . High Security . | . . . . . . . . . . . . . . . . . . . . . . . . . . Max Security . | . . . . . . . . . . . . . . . . . . . . . . . . . . Squads Dispatched 36 | . 2 . . . 1 3 . . 1 . 1 . . 1 . . 1 3 4 . . 3 8 4 4 Investigation 7 | . . . . . . 1 . . . . . . . . . . . 1 1 . . 1 1 1 1 Extermination 9 | . . . . . . . . . 1 . . . . 1 . . . 2 . . . . 4 1 . Reinforcement 15 | . 2 . . . 1 2 . . . . . . . . . . 1 . 2 . . 2 3 . 2 Assault 5 | . . . . . . . . . . . 1 . . . . . . . 1 . . . . 2 1 Garrison . | . . . . . . . . . . . . . . . . . . . . . . . . . . Intercept . | . . . . . . . . . . . . . . . . . . . . . . . . . . Searches Triggered . | . . . . . . . . . . . . . . . . . . . . . . . . . . Construction Impeded 3 | . . . . . . . . . . . . . . . . . . . . . . . 2 . 1 Haulers Reinforced 1 | . . . . . . . . . . . . . . . . . . . . . . . . . 1 Active Scanning Responses . | . . . . . . . . . . . . . . . . . . . . . . . . . . Cargo Convoy Interrupts . | . . . . . . . . . . . . . . . . . . . . . . . . . . Stealth | -11 -10 -10 -10 -9 -8 -8 -8 -8 -6 -6 -6 -6 -5 -5 -5 -5 -5 -4 -4 -4 -4 -3 -3 -2 -1 --------- Run | Yrd Mat Min Exi Min Mat Sto Rec Scr Fac Low Low Dat Pro Fac Was Fac DSF Fac Ext Cet Arc Res Tes Res Acc Distress Signals 17 | . 1 . . . . 1 . . 1 . . . . . . . . . 1 2 . 5 2 2 2 Communications Jammed . | . . . . . . . . . . . . . . . . . . . . . . . . . . Distress Signals . | . . . . . . . . . . . . . . . . . . . . . . . . . . Times Spotted 353 | . 27 4 . . 21 20 9 . 10 9 15 . 6 4 6 1 3 6 47 11 15 15 54 28 42 Peak Tracking Total 12 | . 4 2 . . 7 6 2 . 5 3 4 . 4 2 4 1 4 2 6 6 1 5 11 9 12 Tactical Retreats 24 | . 2 . . . . 1 . . . . 2 . 1 . . . 1 . 3 . . . 7 1 6 Traps | -11 -10 -10 -10 -9 -8 -8 -8 -8 -6 -6 -6 -6 -5 -5 -5 -5 -5 -4 -4 -4 -4 -3 -3 -2 -1 ------- Run | Yrd Mat Min Exi Min Mat Sto Rec Scr Fac Low Low Dat Pro Fac Was Fac DSF Fac Ext Cet Arc Res Tes Res Acc Traps Triggered 13 | . 3 . . . . 1 . . 1 . . . . 1 . . 1 1 2 . . . 2 . 1 Indirectly . | . . . . . . . . . . . . . . . . . . . . . . . . . . Trap Hack Attempts . | . . . . . . . . . . . . . . . . . . . . . . . . . . Triggered . | . . . . . . . . . . . . . . . . . . . . . . . . . . Disarmed . | . . . . . . . . . . . . . . . . . . . . . . . . . . Reprogrammed . | . . . . . . . . . . . . . . . . . . . . . . . . . . Reused . | . . . . . . . . . . . . . . . . . . . . . . . . . . Traps Extracted . | . . . . . . . . . . . . . . . . . . . . . . . . . . Installed . | . . . . . . . . . . . . . . . . . . . . . . . . . . Triggered . | . . . . . . . . . . . . . . . . . . . . . . . . . . Machines | -11 -10 -10 -10 -9 -8 -8 -8 -8 -6 -6 -6 -6 -5 -5 -5 -5 -5 -4 -4 -4 -4 -3 -3 -2 -1 ---------- Run | Yrd Mat Min Exi Min Mat Sto Rec Scr Fac Low Low Dat Pro Fac Was Fac DSF Fac Ext Cet Arc Res Tes Res Acc Machines Disabled 29 | . 1 1 . . 1 2 . . . . . . . . . . . 8 1 . 3 1 11 . . Max in Single Turn 4 | . 1 1 . . 1 1 . . . . . . . . . . . 4 1 . 1 1 1 . . Garrison Access 2 | . . . . . . . . . . . . . . . . . . . . . . . 1 1 . Energy Cycler 1 | . . . . . . . . . . . . . . . . . . . 1 . . . . . . Machines Repaired . | . . . . . . . . . . . . . . . . . . . . . . . . . . Machines Dismantled . | . . . . . . . . . . . . . . . . . . . . . . . . . . Machines Sabotaged . | . . . . . . . . . . . . . . . . . . . . . . . . . . Overloaded Fab Kills . | . . . . . . . . . . . . . . . . . . . . . . . . . . Hacking | -11 -10 -10 -10 -9 -8 -8 -8 -8 -6 -6 -6 -6 -5 -5 -5 -5 -5 -4 -4 -4 -4 -3 -3 -2 -1 --------- Run | Yrd Mat Min Exi Min Mat Sto Rec Scr Fac Low Low Dat Pro Fac Was Fac DSF Fac Ext Cet Arc Res Tes Res Acc Machines Accessed 53 | . 5 . 2 . 1 2 10 2 . . 2 4 1 5 . 1 . . 1 . . 2 10 3 2 Terminals 36 | . 5 . . . 1 2 5 . . . . . 1 5 . 1 . . 1 . . 2 9 2 2 Fabricators . | . . . . . . . . . . . . . . . . . . . . . . . . . . Repair Stations . | . . . . . . . . . . . . . . . . . . . . . . . . . . Recycling Units 5 | . . . . . . . 5 . . . . . . . . . . . . . . . . . . Scanalyzers . | . . . . . . . . . . . . . . . . . . . . . . . . . . Garrison Access 2 | . . . . . . . . . . . . . . . . . . . . . . . 1 1 . Total Hacks 109 | . 7 . 2 . 1 5 14 5 . . 5 28 1 6 . 1 . . 1 . . 5 18 6 4 Successful 73 | . 5 . 2 . 1 2 12 5 . . 5 28 1 2 . 1 . . 1 . . 1 5 1 1 Failed 36 | . 2 . . . . 3 2 . . . . . . 4 . . . . . . . 4 13 5 3 Catastrophic 6 | . . . . . . 1 . . . . . . . . . . . . . . . 1 3 . 1 Database Lockouts . | . . . . . . . . . . . . . . . . . . . . . . . . . . Manual 40 | . 7 . 3 . 1 1 14 . . . . . . 6 . . . . . . . 5 2 1 . Terminals 57 | . 7 . . . 1 5 6 . . . . . 1 6 . 1 . . 1 . . 5 16 4 4 Fabricators . | . . . . . . . . . . . . . . . . . . . . . . . . . . Repair Stations . | . . . . . . . . . . . . . . . . . . . . . . . . . . Recycling Units 8 | . . . . . . . 8 . . . . . . . . . . . . . . . . . . Scanalyzers . | . . . . . . . . . . . . . . . . . . . . . . . . . . Garrison Access 4 | . . . . . . . . . . . . . . . . . . . . . . . 2 2 . Terminal Hacks 53 | . . . 2 . 1 2 1 5 . . 5 28 1 . . 1 . . 1 . . 1 4 . 1 Record 23 | . . . 1 . . . 1 4 . . 4 11 1 . . . . . 1 . . . . . . Part Schematic 13 | . . . . . . . . . . . . 13 . . . . . . . . . . . . . Robot Schematic 4 | . . . . . . . . . . . . 4 . . . . . . . . . . . . . Open Door 4 | . . . . . . 2 . . . . 1 . . . . . . . . . . . 1 . . Open DSF 1 | . . . . . . . . . . . . . . . . 1 . . . . . . . . . Branch Access Points 3 | . . . . . 1 . . . . . . . . . . . . . . . . 1 . . 1 Garrison Index 1 | . . . . . . . . . . . . . . . . . . . . . . . 1 . . Alert Level 1 | . . . . . . . . . . . . . . . . . . . . . . . 1 . . Investigation Status 1 | . . . . . . . . . . . . . . . . . . . . . . . 1 . . Derelict Proto ID Bank 2 | . . . 1 . . . . 1 . . . . . . . . . . . . . . . . . Fabricator Hacks . | . . . . . . . . . . . . . . . . . . . . . . . . . . Repair Station Hacks . | . . . . . . . . . . . . . . . . . . . . . . . . . . Recycling Unit Hacks 1 | . . . . . . . 1 . . . . . . . . . . . . . . . . . . Report Inventory 1 | . . . . . . . 1 . . . . . . . . . . . . . . . . . . Scanalyzer . | . . . . . . . . . . . . . . . . . . . . . . . . . . Garrison Access Hacks 2 | . . . . . . . . . . . . . . . . . . . . . . . 1 1 . Seal Access 2 | . . . . . . . . . . . . . . . . . . . . . . . 1 1 . Unauthorized Hacks 17 | . 5 . . . . . 10 . . . . . . 2 . . . . . . . . . . . Terminals 12 | . 5 . . . . . 5 . . . . . . 2 . . . . . . . . . . . Skim 12 | . 5 . . . . . 5 . . . . . . 2 . . . . . . . . . . . Fabricators . | . . . . . . . . . . . . . . . . . . . . . . . . . . Repair Stations . | . . . . . . . . . . . . . . . . . . . . . . . . . . Recycling Units 5 | . . . . . . . 5 . . . . . . . . . . . . . . . . . . Tunnel 5 | . . . . . . . 5 . . . . . . . . . . . . . . . . . . Scanalyzers . | . . . . . . . . . . . . . . . . . . . . . . . . . . Garrison Access . | . . . . . . . . . . . . . . . . . . . . . . . . . . Data Cores Recovered 1 | . . . . . . 1 . . . . . . . . . . . . . . . . . . . Used . | . . . . . . . . . . . . . . . . . . . . . . . . . . Hacking Detections 23 | . 2 . . . . 2 1 . . . . . . 4 . . . . . . . 1 8 3 2 Full Trace Events 4 | . . . . . . 1 . . . . . . . . . . . . . . . . 1 1 1 Feedback Events . | . . . . . . . . . . . . . . . . . . . . . . . . . . Feedback Blocked . | . . . . . . . . . . . . . . . . . . . . . . . . . . Robot Schematics Acquired 8 | . . . . . . . . . . . . 4 . . . . . . . . . . 4 . . Robots Built . | . . . . . . . . . . . . . . . . . . . . . . . . . . Authchips . | . . . . . . . . . . . . . . . . . . . . . . . . . . Time . | . . . . . . . . . . . . . . . . . . . . . . . . . . Total Robot Build Rating . | . . . . . . . . . . . . . . . . . . . . . . . . . . Part Schematics Acquired 14 | . . . . . . . . . . . . 13 . . . . . . . . . . 1 . . Parts Built . | . . . . . . . . . . . . . . . . . . . . . . . . . . Authchips . | . . . . . . . . . . . . . . . . . . . . . . . . . . Time . | . . . . . . . . . . . . . . . . . . . . . . . . . . Total Part Build Rating . | . . . . . . . . . . . . . . . . . . . . . . . . . . Parts Repaired . | . . . . . . . . . . . . . . . . . . . . . . . . . . Time . | . . . . . . . . . . . . . . . . . . . . . . . . . . Parts Recycled . | . . . . . . . . . . . . . . . . . . . . . . . . . . Recycled Matter . | . . . . . . . . . . . . . . . . . . . . . . . . . . Retrieved Matter . | . . . . . . . . . . . . . . . . . . . . . . . . . . Retrieved Components . | . . . . . . . . . . . . . . . . . . . . . . . . . . Parts Scanalyzed . | . . . . . . . . . . . . . . . . . . . . . . . . . . Part Schematics Acquired . | . . . . . . . . . . . . . . . . . . . . . . . . . . Parts Damaged . | . . . . . . . . . . . . . . . . . . . . . . . . . . Bothacking | -11 -10 -10 -10 -9 -8 -8 -8 -8 -6 -6 -6 -6 -5 -5 -5 -5 -5 -4 -4 -4 -4 -3 -3 -2 -1 ------------ Run | Yrd Mat Min Exi Min Mat Sto Rec Scr Fac Low Low Dat Pro Fac Was Fac DSF Fac Ext Cet Arc Res Tes Res Acc Used RIF Installer . | . . . . . . . . . . . . . . . . . . . . . . . . . . Robots Hacked . | . . . . . . . . . . . . . . . . . . . . . . . . . . Non-combat . | . . . . . . . . . . . . . . . . . . . . . . . . . . Combat . | . . . . . . . . . . . . . . . . . . . . . . . . . . Robot Hacks Applied . | . . . . . . . . . . . . . . . . . . . . . . . . . . Relay Couplers Released . | . . . . . . . . . . . . . . . . . . . . . . . . . . Fabnet Peak Effective % . | . . . . . . . . . . . . . . . . . . . . . . . . . . Robots Rewired 20 | . . . 4 . . . 3 . . . . . . . . . . . 12 . . . 1 . . Allies Hacked . | . . . . . . . . . . . . . . . . . . . . . . . . . . Hacks Repelled . | . . . . . . . . . . . . . . . . . . . . . . . . . . Allies | -11 -10 -10 -10 -9 -8 -8 -8 -8 -6 -6 -6 -6 -5 -5 -5 -5 -5 -4 -4 -4 -4 -3 -3 -2 -1 -------- Run | Yrd Mat Min Exi Min Mat Sto Rec Scr Fac Low Low Dat Pro Fac Was Fac DSF Fac Ext Cet Arc Res Tes Res Acc Total Allies 33 | . . . 4 . . . 3 . . . 2 . . . . . . . 23 . . . 1 . . Largest Group 12 | . . . 4 4 4 . 3 3 3 1 2 . . . . . . . 12 2 . . 1 1 . Highest-Rated Group 498 | . . . 45 45 45 . 47 47 47 27 62 . . . . . . . 498 67 . . 56 56 . Highest-Rated Ally 56 | . . . 21 21 21 . 27 27 27 27 31 . . . . . . . 51 38 . . 56 56 . Total Orders . | . . . . . . . . . . . . . . . . . . . . . . . . . . Ally Attacks 210 | . . . . . 9 . . . 4 . 26 . . . . . . . 171 . . . . . . Total Damage 5449 | . . . . . 109 . . . 52 . 420 . . . . . . . 4868 . . . . . . Kills 27 | . . . . . 1 . . . . . 2 . . . . . . . 24 . . . . . . Allies Corrupted . | . . . . . . . . . . . . . . . . . . . . . . . . . . Allies Melted . | . . . . . . . . . . . . . . . . . . . . . . . . . . Intel | -11 -10 -10 -10 -9 -8 -8 -8 -8 -6 -6 -6 -6 -5 -5 -5 -5 -5 -4 -4 -4 -4 -3 -3 -2 -1 ------- Run | Yrd Mat Min Exi Min Mat Sto Rec Scr Fac Low Low Dat Pro Fac Was Fac DSF Fac Ext Cet Arc Res Tes Res Acc Robot Analysis Total . | . . . . . . . . . . . . . . . . . . . . . . . . . . Derelict Logs Recovered 3 | . . . . . . . . . . 1 1 . 1 . . . . . . . . . . . . Drone Launches . | . . . . . . . . . . . . . . . . . . . . . . . . . . Drone Recoveries . | . . . . . . . . . . . . . . . . . . . . . . . . . . Exploration | -11 -10 -10 -10 -9 -8 -8 -8 -8 -6 -6 -6 -6 -5 -5 -5 -5 -5 -4 -4 -4 -4 -3 -3 -2 -1 ------------- Run | Yrd Mat Min Exi Min Mat Sto Rec Scr Fac Low Low Dat Pro Fac Was Fac DSF Fac Ext Cet Arc Res Tes Res Acc Turns Passed 20908 | 69 1756 336 1269 48 742 681 1758 2537 655 628 973 170 592 520 131 141 47 542 2513 441 486 553 2067 805 448 Spaces Moved 9341 | 39 599 119 487 21 244 226 702 1154 241 316 468 101 344 277 105 131 73 369 1072 174 103 243 996 334 403 Core 454 | 3 3 . . . . . . . . . . . . . 77 71 73 62 . . . . . . 165 Treads 6500 | 36 596 119 487 21 193 167 702 1154 241 316 102 . . 262 28 60 . . 969 . 67 78 894 . 8 Legs 380 | . . . . . . . . . . . . . . . . . . . . . . . . 211 169 Wheels 1946 | . . . . . 51 59 . . . . 366 101 344 15 . . . 307 103 174 36 165 102 123 . Hover . | . . . . . . . . . . . . . . . . . . . . . . . . . . Flight 61 | . . . . . . . . . . . . . . . . . . . . . . . . . 61 Fastest Speed 35 | 50 160 240 240 240 150 150 235 155 155 158 162 170 155 155 50 50 50 50 145 190 190 162 135 110 35 Average Speed 191 | 151 252 240 240 240 209 207 239 218 233 185 185 170 158 164 80 102 50 108 192 190 331 179 163 184 81 Slowest Speed 480 | 160 320 240 240 240 240 320 240 235 235 243 410 170 170 166 166 165 50 145 325 205 480 190 240 220 183 Overloaded Moves . | . . . . . . . . . . . . . . . . . . . . . . . . . . Propulsion Burnouts . | . . . . . . . . . . . . . . . . . . . . . . . . . . Robots Hopped 2 | . . . . . . . . . . . . . . . . . . . . . . . . . 2 Cave-ins Triggered . | . . . . . . . . . . . . . . . . . . . . . . . . . . Exploration Rate (%) 48 | 4 84 34 89 12 27 33 96 81 8 56 65 73 55 9 86 4 61 9 96 62 78 11 91 11 18 Regions Visited 25 Branch Regions 14 Pre-discovered Areas 9 | . . . 1 . . . 7 . . . . 1 . . . . . . . . . . . . . Known Exits Taken 11 | . . 1 . . 1 1 1 1 1 . . . 1 . . 1 . 1 . . 1 1 . . . Unknown Exits Taken 11 | 1 1 . 1 1 . . . . . 1 1 1 . . . . . . 1 1 . . 1 1 . Scrap Searched 5 | . . 1 . . . . . 1 . . 1 . 2 . . . . . . . . . . . . Spaces Dug 30 | . . . . . . . . . . . . . . 5 . . . 5 . . 1 7 9 2 1 Terrain Destroyed 547 | . . 16 . . . . . . . . . . . 5 40 . . 18 90 9 19 17 122 8 203 Melee . | . . . . . . . . . . . . . . . . . . . . . . . . . . Projectile 109 | . . . . . . . . . . . . . . 5 2 . . 13 8 9 17 17 28 8 2 AOE 438 | . . 16 . . . . . . . . . . . . 38 . . 5 82 . 2 . 94 . 201 Terrain Rammed . | . . . . . . . . . . . . . . . . . . . . . . . . . . Walls Destroyed . | . . . . . . . . . . . . . . . . . . . . . . . . . . Machines Disabled . | . . . . . . . . . . . . . . . . . . . . . . . . . . Actions | -11 -10 -10 -10 -9 -8 -8 -8 -8 -6 -6 -6 -6 -5 -5 -5 -5 -5 -4 -4 -4 -4 -3 -3 -2 -1 --------- Run | Yrd Mat Min Exi Min Mat Sto Rec Scr Fac Low Low Dat Pro Fac Was Fac DSF Fac Ext Cet Arc Res Tes Res Acc Total 11369 | 47 734 141 589 20 378 356 759 1170 309 341 527 100 379 327 134 138 83 461 1416 232 196 316 1288 450 478 Wait 599 | . 60 . . . 59 38 9 8 37 3 1 . 18 14 7 . 6 15 137 5 43 18 91 19 11 Move 9314 | 38 598 118 486 20 243 225 701 1153 240 315 467 100 343 277 104 130 72 368 1071 173 102 242 995 333 400 Hop 1 | . . . . . . . . . . . . . . . . . . . . . . . . . 1 Pick Up 155 | 4 14 1 3 . 10 8 4 3 3 1 5 . 4 7 5 2 1 24 16 4 1 7 15 9 4 Fast Attach 121 | 5 4 . 1 . 4 17 1 . . 4 3 . 1 2 . 2 1 11 12 5 2 7 22 9 8 Attach 83 | . 2 3 . . 9 3 . 1 3 . 6 . 2 3 1 2 . 6 5 4 2 4 16 1 10 Detach 13 | . . . . . . . . . . . . . . 1 1 1 . . . . . 2 5 1 2 Swap 55 | . 3 2 . . 2 3 2 . . 1 1 . . 3 . . . 2 6 7 4 1 9 9 . Drop 148 | . . . 3 . 3 16 7 5 . 3 4 . 1 7 9 1 3 7 20 9 3 10 22 11 4 Fire 684 | . 53 17 . . 48 46 26 . 24 14 40 . 10 13 7 . . 28 71 25 39 25 111 58 29 Melee . | . . . . . . . . . . . . . . . . . . . . . . . . . . Ram 1 | . . . . . . . . . . . . . . . . . . . . . . . 1 . . Kick . | . . . . . . . . . . . . . . . . . . . . . . . . . . Crush 10 | . . . . . . . . . . . . . . . . . . . 1 . . . . . 9 Escape Stasis 6 | . . . . . . . . . 2 . . . . . . . . . 4 . . . . . . Rewire 179 | . . . 96 . . . 9 . . . . . . . . . . . 73 . . . 1 . . Trap . | . . . . . . . . . . . . . . . . . . . . . . . . . . Miscellaneous . | . . . . . . . . . . . . . . . . . . . . . . . . . . Route ------- -11/Scrapyard -10/Materials (discovered 5 exits: *Mat x3 / [*Min] / Sub) -10/Mines (discovered 3 exits: *Mat x2 / *Exi) -10/Exiles -9/Mines -8/Materials -8/Storage -8/Recycling (discovered 2 exits: *Fac / *Scr) -8/Scraptown (discovered 2 exits: *Fac x2) -6/Factory (discovered 6 exits: Fac x4 / *Low x2) -6/Lower Caves -6/Lower Caves (discovered 2 exits: *Fac / *Dat) -6/Data Miner -5/Proximity Caves -5/Factory (discovered 4 exits: Fac x2 / Upp x2) -5/Waste -5/Factory -5/DSF -4/Factory (discovered 4 exits: Res / [*Upp] / *Ext x2) -4/Extension (discovered 2 exits: *Res / [*Cet]) -4/Cetus (discovered 2 exits: *Res / [*Arc]) -4/Archives (discovered 2 exits: *Res / [*Hub]) -3/Research (discovered 2 exits: *Tes x2) -3/Testing -2/Research -1/Access (discovered 1 exit: Com) History --------- Turn | Location | Event 28 | -11/Scrapyard | Discovered new exit (range 16) 70 | -11/Scrapyard | Entered Materials 280 | -10/Materials | Discovered new exit (range 5) 300 | -10/Materials | Build established: Mutant 660 | -10/Materials | Discovered new exit (range 16) 1053 | -10/Materials | Discovered new exit (range 16) 1399 | -10/Materials | Learned 2 Storage zone layouts 1436 | -10/Materials | Learned location of 2 exits from Mines 1464 | -10/Materials | Loaded intel: 2 recycling unit locations 1482 | -10/Materials | Identified exit to Materials 1482 | -10/Materials | Identified exit to Subcaves 1489 | -10/Materials | Learned Storage trap positions 1535 | -10/Materials | Loaded intel: 16 trap records 1826 | -10/Materials | Entered Mines 1827 | -10/Mines | Identified exit to Exiles 1828 | -10/Mines | Core integrity fell below 50% 1834 | -10/Mines | Met a Derelict bent on vengeance 1948 | -10/Mines | Core integrity fell below 20% 2101 | -10/Mines | Discovered exit to Materials (range 10) 2150 | -10/Mines | Deemed a non-threat by the Exiles lab entrance 2162 | -10/Mines | Entered Exiles 2162 | -10/Exiles | Found Exiles lab destroyed 2528 | -10/Exiles | Learned location of Zion (-7) 2889 | -10/Exiles | Build established: Commander-Mutant 3078 | -10/Exiles | Opened EX-Vault 3088 | -10/Exiles | Found YOLO Cannon 3404 | -10/Exiles | Discovered new exit (range 14) 3431 | -10/Exiles | Entered Mines 3431 | -9/Mines | Accompanied by 4 allies 3455 | -9/Mines | Discovered new exit (range 9) 3479 | -9/Mines | Entered Materials 3479 | -8/Materials | Accompanied by 4 allies 3479 | -8/Materials | Evolved 4 slots: Propulsion x1, Utility x2, Weapon x1 3693 | -8/Materials | Identified exit to Storage 3767 | -8/Materials | Lost 4 allies 3886 | -8/Materials | Lost 3 parts (1n2u) 4192 | -8/Materials | Lost 4 parts (1n1u2w) 4221 | -8/Materials | Entered Storage 4222 | -8/Storage | Identified exit to Recycling 4223 | -8/Storage | Loaded intel: 17 trap records 4325 | -8/Storage | Core integrity fell below 50% 4561 | -8/Storage | Lost 5 parts (1p2n1u1w) 4893 | -8/Storage | Used back door to open Recycling access 4902 | -8/Storage | Entered Recycling 4931 | -8/Recycling | Build established: Scavenger-Tank 5416 | -8/Recycling | Build established: Scavenger-Gunner 6121 | -8/Recycling | Discovered new exit (range 15) 6188 | -8/Recycling | Identified exit to Factory 6240 | -8/Recycling | Identified exit to Scraptown 6317 | -8/Recycling | Learned location of Lower Caves (-6) 6340 | -8/Recycling | Learned location of 3 exits from Factory 6374 | -8/Recycling | Learned location of 2 exits from Factory 6453 | -8/Recycling | Learned 4 Factory zone layouts 6597 | -8/Recycling | Scanned before Scraplab entrance 6632 | -8/Recycling | Entered Scraplab 6660 | -8/Recycling | Entered Scraptown 6660 | -8/Scraptown | Accompanied by 3 allies 6660 | -8/Scraptown | System corruption cleaned by C-Scrubber 7025 | -8/Scraptown | Discovered exit to Factory (range 11) 7102 | -8/Scraptown | Visited Cyclists 7140 | -8/Scraptown | Visited Shadow of the Wyrm 7189 | -8/Scraptown | Visited Symbiants 7213 | -8/Scraptown | Visited Comm Corps 7262 | -8/Scraptown | Visited CPS Storage 7356 | -8/Scraptown | Visited IN-MT5's Study 7485 | -8/Scraptown | Heard Great Nut preacher, LISTEN AND RECITE! 7758 | -8/Scraptown | Visited UFD Registry 7758 | -8/Scraptown | Registered with UFD as "Laserbox" 7805 | -8/Scraptown | Visited A0-MCA Data Center 7899 | -8/Scraptown | Visited Science Guys 8026 | -8/Scraptown | Visited Abandonware Association 8066 | -8/Scraptown | Visited Infowarlord's Domain 8141 | -8/Scraptown | Visited Observation Area 8338 | -8/Scraptown | Visited Scrap Suit Storage 8651 | -8/Scraptown | Found Spectral Analyzer 8855 | -8/Scraptown | Found Scrap Suit 8871 | -8/Scraptown | Found Scrap Suit 8943 | -8/Scraptown | Learned abandonware demo "MELTYB.EXE" 9180 | -8/Scraptown | Discovered exit to Factory (range 5) 9197 | -8/Scraptown | Entered Factory 9197 | -6/Factory | Accompanied by 3 allies 9197 | -6/Factory | Evolved 4 slots: Propulsion x1, Utility x3 9198 | -6/Factory | Identified exit to Lower Caves 9199 | -6/Factory | Identified exit to Factory 9852 | -6/Factory | Entered Lower Caves 9852 | -6/Lower Caves | Accompanied by 1 ally 10079 | -6/Lower Caves | Attracted the attention of an 0b10 checkpoint 10346 | -6/Lower Caves | Learned location of 2 exits from Factory 10472 | -6/Lower Caves | Discovered new exit (range 5) 10480 | -6/Lower Caves | Entered another Lower Caves area 10526 | -6/Lower Caves | Discovered exit to Factory (range 11) 10550 | -6/Lower Caves | Lost 3 parts (2n1u) 10621 | -6/Lower Caves | A Commander dispatched an escort 10673 | -6/Lower Caves | Learned Armory trap positions 10673 | -6/Lower Caves | Learned Extension security intel 10731 | -6/Lower Caves | Attracted the attention of an 0b10 outpost 10775 | -6/Lower Caves | Lost 4 parts (1p1n2u) 10958 | -6/Lower Caves | Attracted the attention of an 0b10 checkpoint 11063 | -6/Lower Caves | Build established: Scavenger-Tank 11441 | -6/Lower Caves | Discovered new exit (range 6) 11447 | -6/Lower Caves | Encountered a Warlord checkpoint 11453 | -6/Lower Caves | Entered Data Miner 11453 | -6/Data Miner | Discovered new exit (range 6) 11486 | -6/Data Miner | Met Data Miner 11520 | -6/Data Miner | Learned location of Section 7 (-2) 11520 | -6/Data Miner | Acquired the access code to Warlord's prototype stash 11552 | -6/Data Miner | Received God Mode back door access code from Data Miner 11623 | -6/Data Miner | Entered Proximity Caves 11706 | -5/Proximity Caves | Lost 3 parts (1n1u1w) 11795 | -5/Proximity Caves | Spotted B-75 Beast 11991 | -5/Proximity Caves | Build established: Scavenger-Gunner 12193 | -5/Proximity Caves | Discovered exit to Factory (range 13) 12215 | -5/Proximity Caves | Entered Factory 12215 | -5/Factory | Evolved 2 slots: Utility x2 12216 | -5/Factory | Identified exit to Upper Caves 12217 | -5/Factory | Identified exit to Factory 12623 | -5/Factory | Build established: Tank 12735 | -5/Factory | Sucked down chute 12735 | -5/Factory | Entered Waste 12750 | -5/Waste | EMP discharged 12760 | -5/Waste | Spotted C-40 Crusher 12762 | -5/Waste | Spotted C-40 Crusher 12773 | -5/Waste | Spotted C-40 Crusher 12775 | -5/Waste | Spotted C-40 Crusher 12779 | -5/Waste | Destroyed C-40 Crusher 12811 | -5/Waste | Crushed by Compactor (1 part destroyed) 12813 | -5/Waste | Destroyed C-40 Crusher 12822 | -5/Waste | Crushed by Compactor (1 part destroyed) 12839 | -5/Waste | Spotted C-40 Crusher 12842 | -5/Waste | Spotted C-40 Crusher 12850 | -5/Waste | EMP discharged 12850 | -5/Waste | System corruption reached 10% 12853 | -5/Waste | Lost 3 parts (1p1n1u) 12854 | -5/Waste | Crushed by Compactor (0 parts destroyed, 1 dropped) 12858 | -5/Waste | Discovered new exit (range 16) 12866 | -5/Waste | Entered Factory 12971 | -5/Factory | Identified exit to DSF 13007 | -5/Factory | Entered DSF 13046 | -5/DSF | Additional patrols routed to DSF 13046 | -5/DSF | Discovered exit to Factory (range 15) 13054 | -5/DSF | Entered Factory 13054 | -4/Factory | Evolved 2 slots: Propulsion x1, Utility x1 13055 | -4/Factory | Identified exit to Research 13055 | -4/Factory | Identified exit to Extension 13392 | -4/Factory | Discovered new exit (range 16) 13596 | -4/Factory | Entered Extension 13811 | -4/Extension | Build established: Scavenger-Gunner 13913 | -4/Extension | Rescued a captive Derelict 13999 | -4/Extension | Lost 3 parts (3u) 14048 | -4/Extension | Rescued a captive Derelict 14049 | -4/Extension | Rescued a captive Derelict 14095 | -4/Extension | Rescued a captive Derelict 14163 | -4/Extension | Rescued a captive Derelict 14241 | -4/Extension | Lost 4 allies 14874 | -4/Extension | Build established: Commander-Gunner 15052 | -4/Extension | Spotted B-86 Titan 15062 | -4/Extension | Allies destroyed B-86 Titan 15076 | -4/Extension | Spotted B-86 Titan 15097 | -4/Extension | Destroyed B-86 Titan 15124 | -4/Extension | Lost 4 allies 15163 | -4/Extension | Rescued a captive Derelict 15164 | -4/Extension | Rescued a captive Derelict 15196 | -4/Extension | Rescued a captive Derelict 15196 | -4/Extension | Rescued a captive Derelict 15216 | -4/Extension | Energy Cycler disabled 15216 | -4/Extension | Rescued a captive Derelict 15216 | -4/Extension | Rescued a captive Derelict 15250 | -4/Extension | Lost 3 allies 15382 | -4/Extension | Build established: Scavenger-Gunner 15459 | -4/Extension | Discovered exit to Research (range 10) 15461 | -4/Extension | Discovered new exit (range 6) 15846 | -4/Extension | First assault squad dispatched 15935 | -4/Extension | Lost 5 allies 16109 | -4/Extension | Entered Cetus 16109 | -4/Cetus | Accompanied by 2 allies 16137 | -4/Cetus | Spotted Cetus Guard 16137 | -4/Cetus | Spotted Cetus Guard 16138 | -4/Cetus | Spotted Cetus Guard 16139 | -4/Cetus | Spotted Cetus Guard 16139 | -4/Cetus | Destroyed Cetus Guard 16139 | -4/Cetus | Destroyed Cetus Guard 16148 | -4/Cetus | Destroyed Cetus Guard 16161 | -4/Cetus | Destroyed Cetus Guard 16282 | -4/Cetus | Discovered new exit (range 15) 16314 | -4/Cetus | Spotted Cetus Guard 16314 | -4/Cetus | Spotted Cetus Guard 16316 | -4/Cetus | Spotted Cetus Guard 16336 | -4/Cetus | Spotted Cetus Guard 16339 | -4/Cetus | Destroyed Cetus Guard 16348 | -4/Cetus | Destroyed Cetus Guard 16362 | -4/Cetus | Destroyed Cetus Guard 16366 | -4/Cetus | Destroyed Cetus Guard 16377 | -4/Cetus | Discovered exit to Research (range 16) 16386 | -4/Cetus | Met Revision 17 16390 | -4/Cetus | Lost 6 parts (3n1u2w) 16550 | -4/Cetus | Entered Archives 16768 | -4/Archives | Discovered new exit (range 15) 16976 | -4/Archives | Discovered exit to Research (range 16) 17036 | -4/Archives | Entered Research 17036 | -3/Research | Evolved 2 slots: Power x1, Propulsion x1 17114 | -3/Research | Identified exit to Testing 17236 | -3/Research | Revision forces began assault on 0b10 17237 | -3/Research | Found Quantum Capacitor 17338 | -3/Research | Met up with Revision 17++ 17497 | -3/Research | Spotted B-86 Titan 17589 | -3/Research | Entered Testing 17650 | -3/Testing | Found Prototype Processor 17650 | -3/Testing | Identified Exp. Targeting Computer 17811 | -3/Testing | Found Prototype Energy Gun 17811 | -3/Testing | Identified Tachyon Dispersion Ray 17892 | -3/Testing | Found Prototype Device 17892 | -3/Testing | Identified Exp. Shield Generator 18147 | -3/Testing | Spotted Striker 18187 | -3/Testing | Build established: Scavenger-Tank 18308 | -3/Testing | Destroyed 7 combat bots 18385 | -3/Testing | System corruption reached 10% 18487 | -3/Testing | Found Prototype Device 18488 | -3/Testing | Identified Exp. Focal Shield 18574 | -3/Testing | Found Prototype Ballistic Cannon 18574 | -3/Testing | Identified Omega Cannon 18658 | -3/Testing | Spotted PD-NVGHJOE4E8 18759 | -3/Testing | Lost 5 parts (1p1n3u) 19135 | -3/Testing | Found Fusion Bomb Launcher 19360 | -3/Testing | Discovered new exit (range 7) 19419 | -3/Testing | Destroyed 10 combat bots 19445 | -3/Testing | Lost 8 parts (3p3n2u) 19461 | -3/Testing | Found Prototype Device 19461 | -3/Testing | Identified AEGIS Remote Shield 19602 | -3/Testing | Found Prototype Protection 19608 | -3/Testing | Found Lgt. Regenerative Plating 19612 | -3/Testing | Found Prototype Protection 19656 | -3/Testing | Entered Research 19656 | -2/Research | Accompanied by 1 ally 19656 | -2/Research | Evolved 2 slots: Power x1, Utility x1 19778 | -2/Research | Identified Hvy. Regenerative Plating 19906 | -2/Research | First assault squad dispatched 20045 | -2/Research | Build established: Hacker-Gunner 20433 | -2/Research | Discovered new exit (range 15) 20461 | -2/Research | Entered Access 20461 | -1/Access | Evolved 2 slots: Utility x1, Weapon x1 20493 | -1/Access | Identified SHELL Armor 20508 | -1/Access | Identified exit to Command 20647 | -1/Access | Lost 3 parts (1u2w) 20661 | -1/Access | Destroyed 9 combat bots 20711 | -1/Access | First assault squad dispatched 20749 | -1/Access | Released all parts (17) 20788 | -1/Access | System corruption reached 10% 20873 | -1/Access | Build established: Mutant 20876 | -1/Access | Spotted B-99 Colossus 20878 | -1/Access | Core integrity fell below 50% 20893 | -1/Access | Spotted B-99 Colossus 20894 | -1/Access | Spotted B-99 Colossus 20906 | -1/Access | Core integrity fell below 20% 20909 | -1/Access | Destroyed by P-80 Master with Gamma Rifle Last Messages --------------- 20894_ Slug penetrates Wall. 20898_ Knocked back. 20898_ Slug penetrates Wall. 20901_ Penetrated by Slug. 20901_ Electron Diverter destroyed. 20901_ Slug penetrates Reinforced Barrier. 20904_ Exp. Matter Compressor blasted off. 20904_ Penetrated by Slug. 20905_ Slug penetrates Reinforced Barrier. 20905_ Slug penetrates S-43 Plague. 20905_ Slug penetrates B-99 Colossus. 20905_ Slug penetrates Sealed Heavy Doors. 20906_ B-99 Colossus activates siege mode. 20907_ SU:KAI5UJHLPK:1 S30K7 20908_ Penetrated by Slug. 20908_ Slug penetrates Sealed Heavy Doors. 20908_ AEGIS Remote Shield destroyed. 20908_ Penetrated by Slug. 20908_ Slug penetrates P-80 Master. 20908_ Penetrated by Slug. Map ----- +----------------------------------------------------+ | ? #= #????????????????????????######???????? | | ! # ########################## ######### | | # | | [ # | | ############/##### ""######### ######### | | ??????# #?# ""#???????##+###???????? | | ??????# #?# ""#???????? ?????????? | | ??????# " #?# T#???????? ?????????? | | ??????# """ #?# ""#??????? = ????????? | | ??????# """ #?# ""#??????? ????????? | | ??????# " #?# ""#?????? ???????? | | ??????# #?""""""""""""?????? """"???????? | | ??????# #?????????????????? """"""??????? | | ??????# #?????????????????? """"""??????? | | ??????##########????????????????? ""?????????? | | ????????????????????????????????? * ???????????? | | ????????????????????????????????# ????????????? | | ????????????????????????????????# ????????????? | | ??????????????????????????????????##?????????????? | | ?????????????????????????????????????????????????? | | ?????????????????????????????????????????????????? | | ???###########???????????????????????????????????? | | #??# #???????????????????????????????????? | | #??# #???????????????????????????????????? | | #??# " #???#""""""""""#????????????????????? | | #??# """ #???# @p #????????????????????? | | #??# """ #???# BB sBB%#????????????????????? | | #??# " #???# BB % BB%#????????????????????? | | #??? !????# #????????????????????? | | #????? ??????# #????????????????????? | | ########+####????# #????????????????????? | | #????# #????????????????????? | | ######## #????#### ;;;#????????????????????? | | ?????# #???????# ;###############????????? | | ???# #???????# # #?????? | | != #??# #???????# %# #?????? | | ! #??#+##+######### " ] #?????? | | = #??# = p + ??????? | | ! #??# # # ??????? | | #####??# # " ???????? | | ???????#""""" # # ???????? | | ???????#""""" # #################???????? | | ???????#""""" + #????????????????? | | ???????#""""" # #????????????????? | | ?????????"""" # #????????????????? | | ?????????"""" = # #????????????????? | | ????????? ## ##### #????????????????? | | ???????? ## #???? #????????????????? | | ???????# ## #????? #????????????????? | | ???????###############+#????? #????????????????? | +----------------------------------------------------+ Best States ------------- Heat Dissipation 174 Energy Generation 52 Energy Capacity 565 Matter Stores 300 Matter Capacity 300 Sight Range 24 Terrain Scan Density 10 Cloak Strength 2 Power Amplification 30 Additional Mass Support 9 Base Temperature (-) 200 Corruption Block 13 Armor Coverage 900 Resistance: KI 30 Resistance: TH 10 Utility Shielding 33 Weapon Shielding 15 Phase Shifting 5 Evasion (%) 63 Targeting Accuracy 14 Recoil Reduction 6 Energy Filtering 50 Particle Charging 20 Offensive Hacking 26 Defensive Hacking 14 Item Schematics ----------------- Lgt. Regenerative Plating | -6/Data Miner | Free Combat Drone Bay | -6/Data Miner | Free Cld. Gravmag System | -6/Data Miner | Free Cld. Plasma Rifle | -6/Data Miner | Free Point Defense Array | -6/Data Miner | Free Prc. Matter Filter | -6/Data Miner | Free Imp. Linear Gravjet | -6/Data Miner | Free Dispersion Rifle | -6/Data Miner | Free Hvy. Phase Cannon | -6/Data Miner | Free Micro-nuke Launcher | -6/Data Miner | Free Imp. Force Field | -6/Data Miner | Free Adv. Heavy Treads | -6/Data Miner | Free Particle Reactor | -6/Data Miner | Free Hvy. Neutron Cannon | -3/Testing | Archive Robot Schematics ------------------ B-48 Gladiator | -6/Data Miner | Free G-50 Soldier | -6/Data Miner | Free S-27 Virus | -6/Data Miner | Free B-60 Warrior | -6/Data Miner | Free O-32 Director | -3/Testing | Archive B-74 Champion | -3/Testing | Archive H-77 Assassin | -3/Testing | Archive R-06 Scavenger | -3/Testing | Archive Fabricated ------------ Nothing Alien Tech Used ----------------- None Achievements -------------- None Challenges ------------ None Game ------ Seed PiercingFactoryNetwork Manual? 0 Play Time 02:06:35 Cumulative 218.8 hours Start 2024.07.28 @ 22:23:12 End 2024.07.29 @ 00:32:27 Sessions 1 Manual Loads 0 Difficulty Rogue Special Mode None Game No. 223 Rogue 187 Adventurer 36 Explorer 0 Win Type - Total 10 Types 3/0/7/0/0/0/0/0/0 Lore% 57 Gallery% 80 Achievement% 71 Wizard Run 0 Options --------- Layout 0 ASCII 0 Keyboard 0 Movement Mouse Keybinds 0 Fullscreen 1 Font 18/SmallcapsGlow Map View 76x50 Zoom Use 0% Tactical HUD 1 Map Filters NONE Filters NONE Steam 1 RUN: d61dab79-f126-4ee6-bab5-5014b7729dd9